fUSD/lending_fUSD_20250120
["ID","MTS","AMOUNT","RATE_DAILY","PERIOD"]
[349629924,1737336641484,-500.0,0.00021475,2]
[349629925,1737336641494,-500.0,0.00021475,2]
[349629926,1737336641503,-500.0,0.00021475,2]
[349629927,1737336641513,-500.0,0.00021475,2]
[349629928,1737336641522,-500.0,0.00021475,2]
[349629929,1737336641532,-552.01,0.00021475,2]
[349629930,1737336641542,-319.18815056,0.00021475,2]
[349629931,1737336641552,-500.0,0.00021475,2]
[349629932,1737336641563,-502.8200631,0.00021475,2]
[349629933,1737336641572,-699.79,0.00021475,2]
[349629934,1737336641762,-563.74,0.00021475,2]
[349629935,1737336641773,-500.0,0.00021475,2]
[349629936,1737336641782,-500.0,0.00021475,2]
[349629937,1737336641792,-502.55236707,0.00021475,2]
[349629938,1737336641802,-528.18216296,0.00021475,2]
[349629939,1737336641811,-500.0,0.00021475,2]
[349629940,1737336641820,-842.94,0.00021475,2]
[349629941,1737336641830,-500.0,0.00021475,2]
[349629942,1737336641839,-500.0,0.00021475,2]
[349629943,1737336641849,-967.21,0.00021475,2]
[349629944,1737336641859,-500.0,0.00021475,2]
[349629945,1737336641869,-500.0,0.00021475,2]
[349629946,1737336641878,-535.52,0.00021475,2]
[349629947,1737336641888,-500.0,0.00021475,2]
[349629948,1737336641898,-500.0,0.00021475,2]
[349629949,1737336641907,-500.0,0.00021475,2]
[349629950,1737336641917,-500.0,0.00021475,2]
[349629951,1737336641926,-500.0,0.00021475,2]
[349629952,1737336641936,-500.0,0.00021475,2]
[349629953,1737336641945,-500.0,0.00021475,2]
[349629954,1737336641956,-500.0,0.00021475,2]
[349629955,1737336641965,-500.0,0.00021475,2]
[349629956,1737336641975,-500.0,0.00021475,2]
[349629957,1737336641984,-1582.08,0.00021475,2]
[349629958,1737336641993,-1242.45,0.00021475,2]
[349629959,1737336642002,-500.0,0.00021475,2]
[349629960,1737336642011,-1825.73,0.00021475,2]
[349629961,1737336642021,-500.0,0.00021475,2]
[349629962,1737336642030,-500.0,0.00021475,2]
[349629963,1737336642039,-500.0,0.00021475,2]
[349629964,1737336642049,-369.80900285,0.00021475,2]
[349629965,1737336642058,-501.32328476,0.00021475,2]
[349629966,1737336642068,-500.0,0.00021475,2]
[349629967,1737336642077,-1389.67,0.00021475,2]
[349629968,1737336642087,-500.0,0.00021475,2]
[349629969,1737336642096,-500.0,0.00021475,2]
[349629970,1737336642107,-500.0,0.00021475,2]
[349629971,1737336642117,-500.0,0.00021475,2]
[349629972,1737336642126,-500.0,0.00021475,2]
[349629973,1737336642136,-500.0,0.00021475,2]
[349629974,1737336642145,-500.0,0.00021475,2]
[349629975,1737336642155,-500.0,0.00021475,2]
[349629976,1737336642165,-555.17,0.00021475,2]
[349629977,1737336642175,-500.0,0.00021475,2]
[349629978,1737336642187,-500.0,0.00021475,2]
[349629979,1737336642196,-791.66,0.00021475,2]
[349629980,1737336642205,-661.39,0.00021475,2]
[349629981,1737336642215,-316.26844387,0.00021475,2]
[349629982,1737336642224,-273.06383498,0.00021475,2]
[349629983,1737336642233,-500.0,0.00021475,2]
[349629984,1737336642243,-500.0,0.00021475,2]
[349629985,1737336642252,-992.56,0.00021475,2]
[349629986,1737336642261,-316.28061128,0.00021475,2]
[349629987,1737336642271,-500.51531879,0.00021475,2]
[349629988,1737336642280,-500.0,0.00021475,2]
[349629989,1737336642290,-500.0,0.00021475,2]
[349629990,1737336642299,-315.45767473,0.00021475,2]
[349629991,1737336642308,-640.74985517,0.00021475,2]
[349629992,1737336642317,-500.0,0.00021475,2]
[349629993,1737336642327,-207.7281143,0.00021475,2]
[349629994,1737336642336,-500.0,0.00021475,2]
[349629995,1737336642345,-500.0,0.00021475,2]
[349629996,1737336642354,-500.0,0.00021475,2]
[349629997,1737336642364,-500.0,0.00021475,2]
[349629998,1737336642373,-500.0,0.00021475,2]
[349629999,1737336642382,-802.88,0.00021475,2]
[349630000,1737336642392,-672.8,0.00021475,2]
[349630001,1737336642400,-500.0,0.00021475,2]
[349630002,1737336642409,-500.0,0.00021475,2]
[349630003,1737336642418,-593.99518634,0.00021475,2]
[349630004,1737336642428,-500.0,0.00021475,2]
[349630005,1737336642440,-500.0,0.00021475,2]
[349630006,1737336642450,-271.06583046,0.00021475,2]
[349630007,1737336642459,-500.0,0.00021476,2]
[349630008,1737336642469,-1535.35,0.00021476,2]
[349630009,1737336642478,-1193.13,0.00021476,2]
[349630010,1737336642490,-1217.6,0.00021476,2]
[349630011,1737336642499,-998.54,0.00021476,2]
[349630012,1737336642508,-500.0,0.00021476,2]
[349630015,1737336642518,-2339.91,0.00021476,2]
[349630018,1737336642527,-922.05,0.00021476,2]
[349630021,1737336642536,-652.79,0.00021476,2]
[349630023,1737336642546,-920.12,0.00021476,2]
[349630025,1737336642555,-2462.99,0.00021476,2]
[349630028,1737336642567,-539.41,0.00021476,2]
[349630030,1737336642578,-500.0,0.00021476,2]
[349630032,1737336642588,-947.7,0.00021476,2]
[349630033,1737336642597,-891.42,0.00021476,2]
[349630035,1737336642607,-500.0,0.00021476,2]
[349630036,1737336642616,-500.0,0.00021476,2]
[349630037,1737336642625,-500.0,0.00021476,2]
[349630038,1737336642634,-502.98,0.00021476,2]
[349630039,1737336642643,-539.93,0.00021476,2]
[349630040,1737336642655,-606.92,0.00021476,2]
[349630041,1737336642664,-500.0,0.00021476,2]
[349630042,1737336642674,-227.84,0.00021476,2]
[349630043,1737336642684,-500.0,0.00021476,2]
[349630044,1737336642693,-1418.83,0.00021476,2]
[349630045,1737336642702,-1390.14,0.00021476,2]
[349630046,1737336642711,-2209.19,0.00021476,2]
[349630047,1737336642721,-500.0,0.00021476,2]
[349630048,1737336642730,-2369.07,0.00021476,2]
[349630049,1737336642739,-719.29,0.00021476,2]
[349630050,1737336642749,-1491.15,0.00021476,2]
[349630051,1737336642758,-852.27,0.00021476,2]
[349630052,1737336642767,-1420.12,0.00021476,2]
[349630053,1737336642777,-500.0,0.00021476,2]
[349630054,1737336642786,-500.0,0.00021476,2]
[349630055,1737336642796,-500.0,0.00021476,2]
[349630056,1737336642807,-3039.47,0.00021476,2]
[349630057,1737336642817,-1773.91,0.00021476,2]
[349630058,1737336642827,-864.19,0.00021476,2]
[349630059,1737336642836,-500.0,0.00021476,2]
[349630060,1737336642846,-483.75471492,0.00021476,2]
[349630061,1737336642855,-500.0,0.00021476,2]
[349630062,1737336642865,-500.0,0.00021477,2]
[349630063,1737336642874,-543.62318407,0.00021477,2]
[349630064,1737336642884,-500.0,0.00021477,2]
[349630065,1737336642895,-500.0,0.00021477,2]
[349630066,1737336642905,-723.15,0.00021477,2]
[349630067,1737336642916,-500.0,0.00021477,2]
[349630068,1737336642924,-500.0,0.00021477,2]
[349630069,1737336642935,-1034.09,0.00021477,2]
[349630070,1737336642944,-500.0,0.00021477,2]
[349630071,1737336642954,-1114.98,0.00021477,2]
[349630072,1737336642963,-861.32,0.00021477,2]
[349630073,1737336642972,-648.03,0.00021477,2]
[349630074,1737336642982,-764.3,0.00021477,2]
[349630075,1737336642991,-1659.79,0.00021477,2]
[349630076,1737336643000,-1140.17,0.00021477,2]
[349630077,1737336643009,-500.0,0.00021477,2]
[349630078,1737336643019,-522.78,0.00021477,2]
[349630079,1737336643027,-763.01,0.00021477,2]
[349630080,1737336643037,-516.43,0.00021477,2]
[349630081,1737336643046,-500.0,0.00021477,2]
[349630082,1737336643055,-1844.64,0.00021477,2]
[349630083,1737336643064,-500.0,0.00021477,2]
[349630084,1737336643074,-1188.29,0.00021477,2]
[349630085,1737336643083,-500.0,0.00021477,2]
[349630086,1737336643092,-1402.74,0.00021477,2]
[349630087,1737336643102,-1068.45,0.00021477,2]
[349630088,1737336643111,-1139.99,0.00021477,2]
[349630089,1737336643121,-500.0,0.00021477,2]
[349630090,1737336643130,-2399.55,0.00021477,2]
[349630091,1737336643139,-500.0,0.00021477,2]
[349630092,1737336643149,-500.0,0.00021477,2]
[349630093,1737336643158,-795.05,0.00021477,2]
[349630094,1737336643167,-664.32,0.00021477,2]
[349630095,1737336643176,-593.26,0.00021477,2]
[349630096,1737336643190,-500.0,0.00021477,2]
[349630097,1737336643199,-500.0,0.00021477,2]
[349630098,1737336643208,-500.0,0.00021477,2]
[349630099,1737336643218,-500.0,0.00021477,2]
[349630100,1737336643227,-2119.97,0.00021477,2]
[349630101,1737336643237,-500.0,0.00021477,2]
[349630102,1737336643247,-500.0,0.00021477,2]
[349630103,1737336643256,-500.0,0.00021477,2]
[349630104,1737336643266,-2150.55,0.00021477,2]
[349630105,1737336643275,-986.35,0.00021477,2]
[349630106,1737336643284,-597.31,0.00021477,2]
[349630107,1737336643293,-500.0,0.00021477,2]
[349630108,1737336643303,-500.0,0.00021477,2]
[349630109,1737336643312,-958.81,0.00021477,2]
[349630110,1737336643322,-2565.93,0.00021477,2]
[349630111,1737336643333,-500.0,0.00021477,2]
[349630112,1737336643342,-500.0,0.00021477,2]
[349630113,1737336643352,-1756.71,0.00021477,2]
[349630114,1737336643361,-500.0,0.00021477,2]
[349630115,1737336643371,-500.0,0.00021477,2]
[349630116,1737336643380,-2130.19,0.00021477,2]
[349630117,1737336643390,-258.72,0.00021477,2]
[349630118,1737336643399,-500.0,0.00021477,2]
[349630119,1737336643408,-426.7,0.00021477,2]
[349630120,1737336643417,-500.0,0.00021477,2]
[349630121,1737336643426,-3642.8,0.00021477,2]
[349630122,1737336643437,-517.41,0.00021477,2]
[349630123,1737336643446,-529.96,0.00021477,2]
[349630124,1737336643456,-500.0,0.00021477,2]
[349630125,1737336643465,-2154.21,0.00021477,2]
[349630126,1737336643475,-4482.13,0.00021477,2]
[349630127,1737336643487,-500.0,0.00021477,2]
[349630128,1737336643496,-500.0,0.00021477,2]
[349630129,1737336643505,-619.92,0.00021477,2]
[349630130,1737336643515,-2527.47,0.00021477,2]
[349630131,1737336643526,-500.0,0.00021477,2]
[349630132,1737336643535,-500.0,0.00021477,2]
[349630133,1737336643547,-483.51076793,0.00021477,2]
[349630134,1737336643558,-644.99,0.00021477,2]
[349630135,1737336643568,-267.92,0.00021477,2]
[349630136,1737336643577,-500.0,0.00021477,2]
[349630137,1737336643587,-500.0,0.00021477,2]
[349630138,1737336643597,-500.0,0.00021477,2]
[349630139,1737336643607,-507.27,0.00021477,2]
[349630140,1737336643618,-500.0,0.00021477,2]
[349630141,1737336643627,-500.0,0.00021477,2]
[349630142,1737336643636,-500.0,0.00021477,2]
[349630143,1737336643648,-2434.71,0.00021477,2]
[349630144,1737336643658,-713.78,0.00021477,2]
[349630145,1737336643667,-3739.64,0.00021477,2]
[349630146,1737336643677,-5336.25,0.00021477,2]
[349630147,1737336643688,-500.0,0.00021477,2]
[349630148,1737336643698,-3858.03,0.00021477,2]
[349630149,1737336643707,-619.76500894,0.00021477,2]
[349630150,1737336643716,-500.0,0.00021477,2]
[349630151,1737336643726,-545.88,0.00021477,2]
[349630152,1737336643735,-500.0,0.00021477,2]
[349630153,1737336643744,-7504.61,0.00021477,2]
[349630154,1737336643753,-500.0,0.00021477,2]
[349630155,1737336643763,-534.2,0.00021477,2]
[349630156,1737336643772,-631.97,0.00021477,2]
[349630157,1737336643783,-15277.22,0.00021477,2]
[349630158,1737336643792,-2217.28,0.00021477,2]
[349630159,1737336643801,-565.92,0.00021477,2]
[349630160,1737336643810,-500.0,0.00021477,2]
[349630161,1737336643819,-506.75,0.00021477,2]
[349630162,1737336643829,-2548.51,0.00021477,2]
[349630163,1737336643838,-1661.16,0.00021477,2]
[349630164,1737336643847,-1114.84,0.00021477,2]
[349630165,1737336643856,-1574.55,0.00021477,2]
[349630166,1737336643865,-3569.13,0.00021477,2]
[349630167,1737336643875,-663.94,0.00021477,2]
[349630168,1737336643884,-2388.48,0.00021477,2]
[349630169,1737336643893,-500.0,0.00021477,2]
[349630170,1737336643903,-500.0,0.00021477,2]
[349630171,1737336643912,-4176.29,0.00021477,2]
[349630172,1737336643921,-500.0,0.00021477,2]
[349630173,1737336643930,-500.0,0.00021477,2]
[349630174,1737336643942,-500.0,0.00021477,2]
[349630175,1737336643951,-2002.23,0.00021477,2]
[349630176,1737336643960,-727.88,0.00021477,2]
[349630177,1737336643970,-896.51,0.00021477,2]
[349630178,1737336643979,-500.0,0.00021477,2]
[349630179,1737336643988,-5162.40248524,0.00021477,2]
[349630180,1737336644410,-1540.23,0.00020929,2]
[349630181,1737336644420,-1540.23,0.00021203,2]
[349630182,1737336644430,-500.0,0.00021203,2]
[349630183,1737336644443,-469.96140096,0.00021475,2]
[349630184,1737336644454,-35.73718785,0.00021475,2]
[349630185,1737336644463,-1309.21751476,0.00021477,2]
[349630186,1737336644473,-500.0,0.00021477,2]
[349630187,1737336644485,-1478.88,0.00021477,2]
[349630188,1737336644494,-500.0,0.00021477,2]
[349630189,1737336644504,-500.0,0.00021477,2]
[349630190,1737336644513,-500.0,0.00021477,2]
[349630191,1737336644523,-500.0,0.00021477,2]
[349630192,1737336644532,-984.44,0.00021477,2]
[349630193,1737336644542,-500.0,0.00021477,2]
[349630194,1737336644551,-500.0,0.00021477,2]
[349630195,1737336644562,-500.0,0.00021477,2]
[349630196,1737336644573,-500.0,0.00021477,2]
[349630197,1737336644583,-598.01,0.00021477,2]
[349630198,1737336644592,-1775.64,0.00021477,2]
[349630199,1737336644602,-500.0,0.00021477,2]
[349630200,1737336644612,-1189.24,0.00021477,2]
[349630201,1737336644621,-606.01,0.00021477,2]
[349630202,1737336644631,-1271.04,0.00021477,2]
[349630203,1737336644640,-543.14250474,0.00021477,2]
[349630204,1737336644650,-1540.23,0.00021477,2]
[349630205,1737336644660,-500.0,0.00021477,2]
[349630206,1737336644669,-3000.333606,0.000215,5]
[349630207,1737336644679,-168.40256258,0.00021651,2]
[349630208,1737336644693,-531.48,0.00021651,2]
[349630209,1737336644703,-1154.69,0.00021659,2]
[349630210,1737336644713,-1777.24532552,0.00021722,2]
[349630211,1737336644722,-150.0,0.00021743,2]
[349630212,1737336644732,-500.0,0.00021749,2]
[349630213,1737336644742,-500.0,0.00021749,2]
[349630214,1737336644752,-500.0,0.00021749,2]
[349630215,1737336644762,-500.0,0.00021749,2]
[349630216,1737336644771,-500.0,0.00021749,2]
[349630217,1737336644781,-500.0,0.00021749,2]
[349630218,1737336644791,-500.0,0.00021749,2]
[349630219,1737336644801,-550.35280378,0.00021749,2]
[349630220,1737336644810,-500.0,0.00021749,2]
[349630221,1737336644820,-500.0,0.00021749,2]
[349630222,1737336644830,-500.0,0.00021749,2]
[349630223,1737336644839,-500.0,0.00021749,2]
[349630224,1737336644849,-500.0,0.00021749,2]
[349630225,1737336644858,-479.77598673,0.00021749,2]
[349630226,1737336644868,-500.0,0.00021749,2]
[349630227,1737336644878,-500.0,0.00021749,2]
[349630228,1737336644888,-500.0,0.00021749,2]
[349630229,1737336644897,-284.1364083,0.00021749,2]
[349630230,1737336644907,-489.58636029,0.00021749,2]
[349630231,1737336644917,-500.0,0.00021749,2]
[349630232,1737336644927,-500.0,0.00021749,2]
[349630233,1737336644938,-500.0,0.00021749,2]
[349630234,1737336644948,-500.0,0.00021749,2]
[349630235,1737336644958,-500.0,0.00021749,2]
[349630236,1737336644967,-500.0,0.00021749,2]
[349630237,1737336644977,-500.0,0.00021749,2]
[349630238,1737336644987,-957.64,0.00021749,2]
[349630239,1737336644997,-500.0,0.00021749,2]
[349630240,1737336645007,-828.03,0.00021749,2]
[349630241,1737336645017,-500.0,0.00021749,2]
[349630242,1737336645027,-500.0,0.00021749,2]
[349630243,1737336645037,-500.0,0.00021749,2]
[349630244,1737336645046,-500.0,0.00021749,2]
[349630245,1737336645056,-500.0,0.00021749,2]
[349630246,1737336645067,-1351.22,0.00021749,2]
[349630247,1737336645076,-574.73,0.00021749,2]
[349630248,1737336645085,-500.0,0.00021749,2]
[349630249,1737336645095,-500.0,0.00021749,2]
[349630250,1737336645105,-500.0,0.00021749,2]
[349630251,1737336645115,-500.0,0.00021749,2]
[349630252,1737336645124,-500.0,0.00021749,2]
[349630253,1737336645134,-500.0,0.00021749,2]
[349630254,1737336645144,-500.0,0.00021749,2]
[349630255,1737336645154,-500.0,0.00021749,2]
[349630256,1737336645163,-500.0,0.00021749,2]
[349630257,1737336645173,-503.74050456,0.00021749,2]
[349630258,1737336645183,-500.0,0.00021749,2]
[349630259,1737336645198,-500.0,0.00021749,2]
[349630260,1737336645208,-500.0,0.00021749,2]
[349630261,1737336645218,-500.0,0.00021749,2]
[349630262,1737336645228,-500.0,0.00021749,2]
[349630263,1737336645237,-500.0,0.00021749,2]
[349630264,1737336645247,-500.0,0.00021749,2]
[349630265,1737336645257,-604.52,0.00021749,2]
[349630266,1737336645267,-500.0,0.00021749,2]
[349630267,1737336645277,-500.0,0.00021749,2]
[349630268,1737336645288,-500.0,0.00021749,2]
[349630269,1737336645297,-1166.36,0.00021749,2]
[349630270,1737336645307,-500.0,0.00021749,2]
[349630271,1737336645316,-500.0,0.00021749,2]
[349630272,1737336645326,-500.0,0.00021749,2]
[349630273,1737336645336,-500.0,0.00021749,2]
[349630274,1737336645345,-500.0,0.00021749,2]
[349630275,1737336645355,-500.0,0.00021749,2]
[349630276,1737336645364,-897.74,0.00021749,2]
[349630277,1737336645374,-500.0,0.00021749,2]
[349630278,1737336645383,-500.0,0.00021749,2]
[349630279,1737336645393,-500.0,0.00021749,2]
[349630280,1737336645403,-501.01886297,0.00021749,2]
[349630281,1737336645414,-500.0,0.00021749,2]
[349630282,1737336645424,-4854.32,0.00021749,2]
[349630283,1737336645434,-500.0,0.00021749,2]
[349630284,1737336645450,-500.0,0.00021749,2]
[349630285,1737336645460,-1990.23,0.00021749,2]
[349630286,1737336645471,-500.0,0.00021749,2]
[349630287,1737336645485,-2275.433281,0.00021749,2]
[349630288,1737336645500,-500.0,0.00021749,2]
[349630289,1737336645511,-500.0,0.00021749,2]
[349630290,1737336645523,-607.5,0.00021749,2]
[349630291,1737336645533,-1501.28,0.00021749,2]
[349630292,1737336645544,-159.521197,0.00021749,2]
[349630293,1737336645555,-500.0,0.00021749,2]
[349630294,1737336645568,-500.0,0.00021749,2]
[349630295,1737336645579,-500.0,0.00021749,2]
[349630296,1737336645592,-1889.49,0.00021749,2]
[349630297,1737336645604,-500.0,0.00021749,2]
[349630298,1737336645616,-500.0,0.00021749,2]
[349630299,1737336645629,-1461.34,0.00021749,2]
[349630300,1737336645640,-500.0,0.00021749,2]
[349630301,1737336645652,-500.0,0.00021749,2]
[349630304,1737336645664,-500.0,0.00021749,2]
[349630306,1737336645677,-500.0,0.00021749,2]
[349630307,1737336645696,-500.0,0.00021749,2]
[349630308,1737336645708,-1489.26978,0.00021749,2]
[349630309,1737336645720,-500.0,0.00021749,2]
[349630310,1737336645733,-500.0,0.00021749,2]
[349630311,1737336645745,-500.0,0.00021749,2]
[349630312,1737336645756,-500.0,0.00021749,2]
[349630313,1737336645767,-500.0,0.00021749,2]
[349630314,1737336645779,-500.0,0.00021749,2]
[349630315,1737336645791,-500.0,0.00021749,2]
[349630316,1737336645801,-552.01,0.00021749,2]
[349630317,1737336645812,-245.22881905,0.00021749,2]
[349630318,1737336645825,-699.79,0.00021749,2]
[349630319,1737336645838,-563.74,0.00021749,2]
[349630320,1737336645851,-503.62431864,0.00021749,2]
[349630321,1737336645863,-504.28734458,0.00021749,2]
[349630322,1737336645875,-500.0,0.00021749,2]
[349630323,1737336645887,-842.94,0.00021749,2]
[349630324,1737336645898,-500.0,0.00021749,2]
[349630325,1737336645910,-967.21,0.00021749,2]
[349630326,1737336645921,-500.0,0.00021749,2]
[349630327,1737336645932,-500.0,0.00021749,2]
[349630328,1737336645950,-535.52,0.00021749,2]
[349630329,1737336645960,-500.0,0.00021749,2]
[349630330,1737336645970,-500.0,0.00021749,2]
[349630331,1737336645982,-500.0,0.00021749,2]
[349630332,1737336645993,-500.0,0.00021749,2]
[349630333,1737336646003,-500.0,0.00021749,2]
[349630334,1737336646014,-501.83166886,0.00021749,2]
[349630335,1737336646025,-500.0,0.00021749,2]
[349630336,1737336646035,-538.32368135,0.00021749,2]
[349630337,1737336646046,-1582.08,0.00021749,2]
[349630338,1737336646056,-1242.45,0.00021749,2]
[349630339,1737336646067,-500.0,0.00021749,2]
[349630340,1737336646080,-1825.73,0.00021749,2]
[349630341,1737336646091,-500.0,0.00021749,2]
[349630342,1737336646101,-500.0,0.00021749,2]
[349630343,1737336646113,-500.0,0.00021749,2]
[349630344,1737336646124,-1389.67,0.00021749,2]
[349630345,1737336646135,-500.0,0.00021749,2]
[349630346,1737336646145,-500.0,0.00021749,2]
[349630347,1737336646155,-500.0,0.00021749,2]
[349630348,1737336646165,-500.0,0.00021749,2]
[349630349,1737336646176,-448.91454585,0.00021749,2]
[349630350,1737336646190,-500.0,0.00021749,2]
[349630351,1737336646200,-500.0,0.00021749,2]
[349630353,1737336646210,-216.47049012,0.00021749,2]
[349630355,1737336646220,-555.17,0.00021749,2]
[349630357,1737336646230,-500.0,0.00021749,2]
[349630359,1737336646239,-500.0,0.00021749,2]
[349630360,1737336646250,-791.66,0.00021749,2]
[349630361,1737336646260,-661.39,0.00021749,2]
[349630362,1737336646271,-992.56,0.00021749,2]
[349630363,1737336646281,-500.0,0.00021749,2]
[349630364,1737336646292,-530.90833566,0.00021749,2]
[349630365,1737336646302,-512.58068387,0.00021749,2]
[349630366,1737336646313,-500.0,0.00021749,2]
[349630367,1737336646324,-500.0,0.00021749,2]
[349630368,1737336646336,-500.0,0.00021749,2]
[349630369,1737336646347,-500.0,0.00021749,2]
[349630370,1737336646358,-508.73215007,0.00021749,2]
[349630371,1737336646369,-500.0,0.00021749,2]
[349630372,1737336646380,-500.0,0.00021749,2]
[349630373,1737336646392,-802.88,0.00021749,2]
[349630374,1737336646403,-672.8,0.00021749,2]
[349630375,1737336646414,-500.0,0.00021749,2]
[349630376,1737336646425,-505.96573644,0.00021749,2]
[349630377,1737336646441,-565.2548383,0.00021749,2]
[349630378,1737336646453,-500.0,0.00021749,2]
[349630379,1737336646655,-500.0,0.0002175,2]
[349630380,1737336646667,-1535.35,0.0002175,2]
[349630381,1737336646679,-1193.13,0.0002175,2]
[349630382,1737336646696,-1217.6,0.0002175,2]
[349630383,1737336646709,-998.54,0.0002175,2]
[349630384,1737336646720,-500.0,0.0002175,2]
[349630385,1737336646732,-2339.91,0.0002175,2]
[349630386,1737336646744,-922.05,0.0002175,2]
[349630387,1737336646755,-652.79,0.0002175,2]
[349630388,1737336646766,-920.12,0.0002175,2]
[349630389,1737336646777,-2462.99,0.0002175,2]
[349630390,1737336646787,-539.41,0.0002175,2]
[349630391,1737336646797,-500.0,0.0002175,2]
[349630392,1737336646807,-947.7,0.0002175,2]
[349630393,1737336646818,-891.42,0.0002175,2]
[349630394,1737336646828,-500.0,0.0002175,2]
[349630395,1737336646839,-231.63,0.0002175,2]
[349630396,1737336646849,-500.0,0.0002175,2]
[349630397,1737336646860,-502.98,0.0002175,2]
[349630398,1737336646870,-539.93,0.0002175,2]
[349630399,1737336646882,-606.92,0.0002175,2]
[349630400,1737336646893,-500.0,0.0002175,2]
[349630401,1737336646904,-500.0,0.0002175,2]
[349630402,1737336646916,-1418.83,0.0002175,2]
[349630403,1737336646927,-1390.14,0.0002175,2]
[349630404,1737336646944,-2209.19,0.0002175,2]
[349630405,1737336646955,-500.0,0.0002175,2]
[349630406,1737336646967,-2369.07,0.0002175,2]
[349630407,1737336646978,-719.29,0.0002175,2]
[349630408,1737336646990,-1491.15,0.0002175,2]
[349630409,1737336647001,-852.27,0.0002175,2]
[349630410,1737336647012,-1420.12,0.0002175,2]
[349630411,1737336647023,-500.0,0.0002175,2]
[349630412,1737336647034,-622.6,0.0002175,2]
[349630413,1737336647044,-500.0,0.0002175,2]
[349630414,1737336647055,-3039.47,0.0002175,2]
[349630415,1737336647067,-1773.91,0.0002175,2]
[349630416,1737336647078,-775.24575606,0.0002175,2]
[349630417,1737336647096,-88.94424394,0.0002175,2]
[349630418,1737336647107,-500.0,0.0002175,2]
[349630419,1737336647118,-500.0,0.0002175,2]
[349630420,1737336647129,-554.16,0.00021751,2]
[349630421,1737336647140,-500.0,0.00021751,2]
[349630422,1737336647151,-500.0,0.00021751,2]
[349630423,1737336647161,-723.15,0.00021751,2]
[349630424,1737336647172,-500.0,0.00021751,2]
[349630425,1737336647183,-563.19022236,0.00021751,2]
[349630426,1737336647200,-1034.09,0.00021751,2]
[349630427,1737336647212,-500.0,0.00021751,2]
[349630428,1737336647223,-1114.98,0.00021751,2]
[349630429,1737336647234,-861.32,0.00021751,2]
[349630430,1737336647245,-648.03,0.00021751,2]
[349630431,1737336647257,-764.3,0.00021751,2]
[349630432,1737336647268,-1659.79,0.00021751,2]
[349630433,1737336647280,-1140.17,0.00021751,2]
[349630434,1737336647291,-500.0,0.00021751,2]
[349630435,1737336647304,-522.78,0.00021751,2]
[349630436,1737336647315,-763.01,0.00021751,2]
[349630437,1737336647326,-516.43,0.00021751,2]
[349630438,1737336647338,-500.0,0.00021751,2]
[349630439,1737336647349,-1844.64,0.00021751,2]
[349630440,1737336647359,-500.0,0.00021751,2]
[349630441,1737336647369,-1188.29,0.00021751,2]
[349630442,1737336647380,-500.0,0.00021751,2]
[349630443,1737336647391,-1402.74,0.00021751,2]